bitfinex/quotes_ETHUSD_20220213
["timestamp","ask_amount","ask_price","bid_price","bid_amount"]
[1644752896187,1.44852248,2936.9,2936.8,3.4]
[1644752899332,2.59750402,2937.0,2936.8,3.4]
[1644752899533,1.44852248,2936.9,2936.8,3.4]
[1644752902389,1.44852248,2936.9,2936.8,4.25148]
[1644752903004,1.44852248,2936.9,2936.8,2.70627698]
[1644752903583,1.44852248,2936.9,2936.8,1.85479698]
[1644752904226,0.64898154,2937.2,2936.8,1.85479698]
[1644752904227,1.45887606,2937.0,2936.8,1.85479698]
[1644752904429,1.44852248,2936.9,2936.8,2.02506698]
[1644752904624,1.44852248,2936.9,2936.8,1.85479698]
[1644752904823,1.44852248,2936.9,2936.8,2.70627698]
[1644752905428,1.83901837,2937.0,2936.8,2.87656698]
[1644752905641,1.44852248,2936.9,2936.8,2.70627698]
[1644752905829,1.44852248,2936.9,2936.8,2.73010311]
[1644752908277,2.3620487,2936.9,2936.8,2.73010311]
[1644752910498,2.3620487,2936.9,2936.8,2.70627698]
[1644752911390,2.3620487,2936.9,2936.8,1.85479698]
[1644752914839,2.36218343,2936.9,2936.8,1.85479698]
[1644752915279,3.01116497,2936.9,2936.8,2.70631698]
[1644752915703,2.36218343,2936.9,2936.8,2.70631698]
[1644752920124,1.44865721,2936.9,2936.8,2.70631698]
[1644752920526,2.60799233,2937.0,2936.8,2.70631698]
[1644752920735,1.44865721,2936.9,2936.8,2.70631698]
[1644752923076,1.44865721,2936.9,2936.8,1.16113887]
[1644752929609,2.09763875,2936.9,2936.8,1.16113887]
[1644752930782,2.09763875,2936.9,2936.8,1.15967676]
[1644752933185,1.44865721,2936.9,2936.8,1.15967676]
[1644752937890,0.64898154,2936.9,2936.8,1.15967676]
[1644752938084,2.09763875,2936.9,2936.8,1.15967676]
[1644752938902,1.44865721,2936.9,2936.8,1.15967676]
[1644752939287,2.09763875,2936.9,2936.8,1.15967676]
[1644752942535,1.44865721,2936.9,2936.8,1.15967676]
[1644752942736,2.09763875,2936.9,2936.8,1.15967676]
[1644752943134,2.09763875,2936.9,2936.7,1.48767421]
[1644752944040,0.64898154,2936.9,2936.8,0.85152]
[1644752944243,2.0976292,2936.9,2936.8,0.85152]
[1644752945037,1.44864766,2936.9,2936.8,0.85152]
[1644752945283,2.10797793,2937.0,2936.8,1.70289]
[1644752945483,1.44864766,2936.9,2936.8,0.85152]
[1644752946609,1.44864766,2936.9,2936.8,1.70297]
[1644752946783,1.44864766,2936.9,2936.8,0.85152]
[1644752947786,1.44864766,2936.9,2936.8,1.87325]
[1644752947986,1.44864766,2936.9,2936.8,0.85152]
[1644752948256,1.44864766,2936.9,2936.8,4.25152]
[1644752948788,2.0976292,2936.9,2936.8,4.25152]
[1644752951254,0.64898154,2936.9,2936.8,4.25152]
[1644752951452,2.0976292,2936.9,2936.8,4.25152]
[1644752951643,1.44864766,2936.9,2936.8,4.25152]
[1644752952256,1.44864766,2937.0,2936.8,4.25152]
[1644752952446,1.44864766,2937.0,2936.8,5.10292]
[1644752952447,1.45899639,2937.0,2936.8,5.10292]
[1644752952705,2.09984883,2936.9,2936.8,4.25152]
[1644752955999,0.65120117,2936.9,2936.8,4.25152]
[1644752956189,2.09984883,2936.9,2936.8,4.25152]
[1644752957112,0.65120117,2936.9,2936.8,4.25152]
[1644752957555,2.09984883,2936.9,2936.8,4.25152]
[1644752957756,1.44864766,2936.9,2936.8,4.25152]
[1644752958361,1.44864766,2936.9,2936.8,5.27308]
[1644752958569,1.44864766,2936.9,2936.8,4.25152]
[1644752959564,1.44864766,2936.9,2936.8,5.1029]
[1644752959760,1.44864766,2936.9,2936.8,4.25152]
[1644752960997,0.01034873,2937.0,2936.8,4.25152]
[1644752961217,1.44864766,2936.9,2936.8,4.25152]
[1644752963201,1.44864766,2936.9,2936.8,2.70626127]
[1644752963501,2.31325264,2936.9,2936.8,2.70626127]
[1644752964136,1.44864766,2936.9,2936.8,2.70626127]
[1644752966034,1.44864766,2936.9,2936.8,3.55778127]
[1644752968792,1.44864766,2936.9,2936.8,2.70626127]
[1644752970988,1.44864766,2936.9,2936.8,3.55778127]
[1644752972038,2.31325264,2936.9,2936.8,3.55778127]
[1644752973263,1.44864766,2936.9,2936.8,3.55778127]
[1644752973443,2.31325264,2936.9,2936.8,2.70626127]
[1644752975488,2.31325264,2936.9,2936.8,3.55778127]
[1644752979148,1.44864766,2936.9,2936.8,3.55778127]
[1644752981368,1.44864766,2936.9,2936.8,3.72807127]
[1644752981537,2.32360137,2937.0,2936.8,3.55778127]
[1644752981738,1.44864766,2936.9,2936.8,3.55778127]
[1644752982338,0.86460498,2936.9,2936.8,3.55778127]
[1644752982537,2.31325264,2936.9,2936.8,3.55778127]
[1644752983202,2.31325264,2936.9,2936.8,2.01242119]
[1644752983585,0.86460498,2936.9,2936.8,2.01242119]
[1644752983985,2.31325264,2936.9,2936.8,2.01242119]
[1644752984200,3.31325264,2936.9,2936.8,2.01242119]
[1644752984546,1.44864766,2936.9,2936.8,1.16090119]
[1644752984686,2.44864766,2936.9,2936.8,1.16090119]
[1644752984888,1.44864766,2936.9,2936.8,1.16090119]
[1644752985893,1.44864766,2936.9,2936.8,2.01238119]
[1644752986098,2.31325264,2936.9,2936.8,2.01238119]
[1644752986728,2.31325264,2936.9,2936.8,1.16090119]
[1644752986930,1.44864766,2936.9,2936.8,1.16090119]
[1644752987134,1.44864766,2936.9,2936.8,2.01244119]
[1644752987135,2.31625794,2936.9,2936.8,2.01244119]
[1644752987329,1.44864766,2936.9,2936.8,1.16090119]
[1644752987763,2.31625608,2936.9,2936.8,1.16090119]
[1644752988634,0.86760842,2936.9,2936.8,1.16090119]
[1644752988873,2.31625608,2936.9,2936.8,1.16090119]
[1644752989035,1.44864766,2936.9,2936.8,1.16090119]
[1644752989234,2.31625608,2936.9,2936.8,1.16090119]
[1644752989636,1.44864766,2936.9,2936.8,1.16090119]
[1644752990792,0.87795715,2937.0,2936.8,1.16090119]
[1644752991026,1.44864766,2936.9,2936.8,2.01238119]
[1644752992194,1.44864766,2936.9,2936.8,2.86388119]
[1644752992393,1.44864766,2936.9,2936.8,2.01238119]
[1644752993202,0.87795715,2937.0,2936.8,2.01238119]
[1644752993394,1.44864766,2936.9,2936.8,2.86379119]
[1644752993598,1.44864766,2936.9,2936.8,0.85148]
[1644752995547,0.87795715,2937.0,2936.8,0.85148]
[1644752995781,1.44864766,2936.9,2936.8,1.02177]
[1644752995947,1.44864766,2936.9,2936.8,0.85148]
[1644752996846,0.87795715,2937.0,2936.8,0.85148]
[1644752997046,1.44864766,2936.9,2936.8,0.85148]
[1644752998084,2.32660481,2937.0,2936.8,0.85148]
[1644752998302,1.44864766,2936.9,2936.8,0.85148]
[1644752999198,0.87795715,2937.0,2936.8,0.85148]
[1644752999388,1.44864766,2936.9,2936.8,1.87325]
[1644752999598,1.44864766,2936.9,2936.8,0.85148]
[1644753000410,0.87795715,2937.0,2936.8,0.85148]
[1644753000590,1.44864766,2936.9,2936.8,1.02176]
[1644753000789,1.44864766,2936.9,2936.8,0.85148]
[1644753001647,2.09941223,2936.9,2936.8,0.85148]
[1644753002261,2.09942955,2936.9,2936.8,0.85148]
[1644753002440,1.44864766,2936.9,2936.8,0.85148]
[1644753002840,1.86760842,2937.1,2936.8,1.02177]
[1644753002841,2.45899639,2937.0,2936.8,1.02177]
[1644753003045,1.44864766,2936.9,2936.8,0.85148]
[1644753003245,1.44864766,2936.9,2936.6,0.85158]
[1644753003443,0.65097977,2936.8,2936.6,0.85158]
[1644753004544,0.65097977,2936.8,2936.6,3.65158]
[1644753004750,0.65097977,2936.8,2936.6,3.82187]
[1644753004953,0.65097977,2936.8,2936.7,0.85144]
[1644753005388,0.01034842,2937.0,2936.7,0.85144]
[1644753005389,1.87795684,2937.0,2936.7,0.85144]
[1644753005597,2.31625608,2936.9,2936.6,3.65158]
[1644753005988,2.31625608,2936.9,2936.7,0.85148]
[1644753006192,2.31625608,2936.9,2936.6,3.82188]
[1644753006193,3.31625608,2936.9,2936.6,3.65158]
[1644753006388,2.44864766,2936.8,2936.6,3.65158]
[1644753006616,1.44864766,2936.7,2936.6,2.8]
[1644753007096,1.44864766,2936.7,2936.6,2.97029]
[1644753007289,0.65123531,2936.7,2936.6,4.50274]
[1644753007490,2.352678,2936.7,2936.6,2.8]
[1644753007717,3.00391475,2936.7,2936.6,2.8]
[1644753007890,2.352678,2936.7,2936.6,2.8]
[1644753008290,2.352678,2936.7,2936.6,3.65148]
[1644753008593,3.352678,2936.7,2936.6,3.65148]
[1644753009045,2.352678,2936.7,2936.6,3.65148]
[1644753009240,3.352678,2936.7,2936.6,3.65148]
[1644753009435,3.352678,2936.7,2936.6,2.8]
[1644753010648,3.352678,2936.7,2936.6,3.6515]
[1644753010836,3.352678,2936.7,2936.6,2.8]
[1644753013331,2.352678,2936.7,2936.6,2.8]
[1644753013532,3.352678,2936.7,2936.6,2.8]
[1644753013729,2.44864766,2936.7,2936.6,2.8]
[1644753013931,1.44864766,2936.7,2936.6,2.8]
[1644753014131,1.44864766,2936.7,2936.6,3.65152]
[1644753014434,2.09998917,2936.7,2936.6,3.65152]
[1644753014633,0.65134151,2936.7,2936.6,3.65152]
[1644753014831,1.44864766,2936.7,2936.6,3.65152]
[1644753015332,1.44864766,2936.7,2936.6,2.8]
[1644753016449,2.44864766,2936.7,2936.6,2.8]
[1644753016706,1.44864766,2936.7,2936.6,2.8]
[1644753016838,2.44864766,2936.7,2936.6,3.65152]
[1644753017045,1.44864766,2936.7,2936.6,3.65152]
[1644753017242,2.44864766,2936.7,2936.6,3.65152]
[1644753018347,2.44864766,2936.7,2936.6,2.8]
[1644753018348,1.44864766,2936.7,2936.6,2.8]
[1644753018543,2.44864766,2936.7,2936.6,2.8]
[1644753021503,1.44864766,2936.7,2936.6,2.8]
[1644753022493,1.44864766,2936.7,2936.6,3.65152]
[1644753023093,1.44864766,2936.7,2936.6,2.10615821]
[1644753023898,2.10005378,2936.7,2936.6,2.10615821]
[1644753024165,2.10005662,2936.7,2936.6,2.10615821]
[1644753024363,1.44864766,2936.7,2936.6,2.10615821]
[1644753027066,1.44864766,2936.7,2936.6,0.85152]
[1644753028693,2.71607821,2936.8,2936.6,1.02181]
[1644753028896,1.44880082,2936.7,2936.6,1.02568634]
[1644753029097,1.44880082,2936.7,2936.6,0.85539634]
[1644753033042,2.71709458,2936.8,2936.6,0.85539634]
[1644753033243,1.84846979,2936.8,2936.6,0.85539634]
[1644753033457,1.44883345,2936.7,2936.6,0.85539634]
[1644753034261,1.44883345,2936.7,2936.6,0.00387634]
[1644753035993,2.31754889,2936.7,2936.6,0.00387634]
[1644753036193,2.31754889,2936.7,2936.6,0.85538634]
[1644753037254,1.44883345,2936.7,2936.6,0.85538634]
[1644753038193,1.44883345,2936.7,2936.6,1.30387634]
[1644753039246,1.44883345,2936.7,2936.6,2.15538634]
[1644753043314,1.44883345,2936.7,2936.6,0.60998599]
[1644753044636,3.87102446,2936.7,2936.5,1.70282]
[1644753044819,1.44883345,2936.6,2936.5,1.71317043]
[1644753045015,1.44883345,2936.6,2936.5,0.01035043]
[1644753045836,1.44883345,2936.6,2936.4,1.02178]
[1644753046031,0.65144117,2936.5,2936.4,1.0321304]
[1644753047051,0.65144117,2936.5,2936.4,1.02178]
[1644753047251,0.65144117,2936.5,2936.4,1.87332]
[1644753048663,0.65144117,2936.5,2936.4,3.17332]
[1644753049850,0.65144117,2936.5,2936.4,1.87332]
[1644753051300,2.44883345,2936.6,2936.4,1.87332]
[1644753051500,1.44883345,2936.5,2936.4,1.87332]
[1644753051702,2.10040192,2936.5,2936.4,1.87332]
[1644753051902,1.44883345,2936.5,2936.4,0.85146]
[1644753052705,1.44883345,2936.6,2936.4,0.85146]
[1644753052902,1.44883345,2936.5,2936.4,0.85146]
[1644753053120,1.44883345,2936.6,2936.4,0.85146]
[1644753053303,2.44883345,2936.6,2936.4,1.03212049]
[1644753053570,1.44883345,2936.5,2936.4,1.03212049]
[1644753054041,1.44883345,2936.6,2936.4,1.88369049]
[1644753054244,1.44883345,2936.6,2936.4,1.87334]
[1644753055144,0.65148137,2936.5,2936.4,1.87334]
[1644753055747,2.10031482,2936.5,2936.4,1.88369049]
[1644753056150,0.65148137,2936.5,2936.4,1.88369049]
[1644753056795,0.65148137,2936.5,2936.4,1.87334]
[1644753059300,0.65148137,2936.5,2936.4,0.85146]
[1644753059506,1.44883345,2936.5,2936.4,0.85146]
[1644753060206,1.44883345,2936.5,2936.4,1.02178]
[1644753060920,1.44883345,2936.5,2936.4,1.87335]
[1644753061100,1.44883345,2936.6,2936.4,1.87335]
[1644753061399,1.44883345,2936.5,2936.4,1.87335]
[1644753061650,1.44883345,2936.6,2936.4,1.88757242]
[1644753061851,1.44883345,2936.5,2936.4,1.88757242]
[1644753062249,1.44883345,2936.6,2936.4,0.86568242]
[1644753062650,1.44883345,2936.5,2936.4,0.85533193]
[1644753062865,1.44883345,2936.5,2936.4,0.86568242]
[1644753063268,0.5,2936.4,2936.3,0.34209233]
[1644753063454,2.60026716,2936.4,2936.3,0.34209233]
[1644753064253,2.60026716,2936.4,2936.3,3.74209233]
[1644753064451,2.60026716,2936.4,2936.3,3.91241233]
[1644753071042,1.94883345,2936.4,2936.3,3.91241233]
[1644753074023,2.60026716,2936.4,2936.3,3.91241233]
[1644753078646,2.60026716,2936.4,2936.3,3.91628425]
[1644753081892,1.94883345,2936.4,2936.3,3.91628425]
[1644753083395,1.94883345,2936.4,2936.3,2.3708219]
[1644753083793,1.94883345,2936.4,2936.3,2.5411419]
[1644753084643,2.60026716,2936.4,2936.3,2.5411419]
[1644753084944,2.60026716,2936.4,2936.3,3.3927219]
[1644753087454,2.10026716,2936.4,2936.3,3.3927219]
[1644753087650,0.65143371,2936.4,2936.3,3.3927219]
[1644753092950,1.15143371,2936.4,2936.3,3.3927219]
[1644753093460,2.60026716,2936.4,2936.3,3.3927219]
[1644753095295,3.81754889,2936.4,2936.3,2.3708219]
[1644753096094,2.94883345,2936.4,2936.3,2.3708219]
[1644753097598,3.81754889,2936.4,2936.3,2.3708219]
[1644753099645,2.94883345,2936.4,2936.3,2.3708219]
[1644753103388,2.94883345,2936.4,2936.3,0.82521788]
[1644753104194,1.94883345,2936.4,2936.3,0.82521788]
[1644753104393,2.94883345,2936.4,2936.3,0.82521788]
[1644753104603,1.94883345,2936.4,2935.6,5.0989]
[1644753104799,1.07071955,2936.2,2935.8,0.17035]
[1644753104996,1.44883345,2936.1,2935.8,0.17035]
[1644753105900,1.44883345,2936.1,2935.9,0.85173]
[1644753106095,1.44883345,2936.1,2935.9,1.02207]
[1644753106295,1.44883345,2936.1,2935.9,0.17034]
[1644753106949,1.44883345,2936.1,2935.9,3.57034]
[1644753107354,1.44883345,2936.1,2935.9,3.5812666]
[1644753108049,1.44883345,2936.1,2936.0,0.85165]
[1644753109376,1.44883345,2936.1,2935.9,4.42207]
[1644753109753,1.44883345,2936.1,2935.9,4.26265652]
[1644753110484,1.44883345,2936.1,2935.9,3.41092652]
[1644753110604,1.44883345,2936.1,2935.9,3.4]
[1644753111004,1.44883345,2936.1,2935.9,3.4109266]
[1644753111804,1.44883345,2936.1,2935.9,3.4]
[1644753112011,1.44883345,2936.1,2935.9,3.4109266]
[1644753112806,1.44883345,2936.1,2935.9,4.2626666]
[1644753113011,1.44883345,2936.1,2935.9,4.25174]
[1644753113218,1.44883345,2936.1,2935.9,4.2626666]
[1644753113608,1.44883345,2936.1,2935.9,4.4330166]
[1644753113807,1.44883345,2936.1,2936.0,0.85166]
[1644753114245,1.44883345,2936.1,2935.9,4.42209]
[1644753114460,1.44883345,2936.1,2935.9,3.58127652]
[1644753115446,1.44883345,2936.1,2935.9,3.57035]
[1644753115647,1.44883345,2936.1,2935.9,3.5812766]
[1644753115926,1.48430781,2936.1,2935.9,3.5812766]
[1644753116048,1.44883345,2936.0,2935.9,5.1141766]
[1644753116752,1.44883345,2936.0,2935.9,5.10325]
[1644753122471,1.44883345,2936.0,2935.9,5.61231861]
[1644753128902,1.44883345,2936.0,2935.9,8.61148792]
[1644753129145,1.44786511,2936.0,2935.9,8.61148792]
[1644753129342,1.48204591,2936.0,2935.9,5.61231861]
[1644753129542,1.48204591,2936.0,2935.9,8.60729746]
[1644753129748,1.48204591,2936.0,2935.9,5.61231861]
[1644753130158,1.48204591,2936.0,2935.9,8.60398527]
[1644753130659,1.48204591,2936.0,2935.9,5.61231861]
[1644753131249,1.48204591,2936.0,2935.9,5.10325]
[1644753137567,1.48204591,2936.0,2935.9,8.09526816]
[1644753138359,1.48204591,2936.0,2935.9,5.10325]
[1644753149600,1.48061357,2936.0,2935.9,5.10325]
[1644753152848,1.48061357,2936.0,2935.9,3.55759917]
[1644753164206,1.48061357,2936.0,2935.9,3.55639853]
[1644753185160,1.47949999,2936.0,2935.9,3.55639853]
[1644753190659,1.47949999,2936.0,2935.9,2.0107379]
[1644753193123,1.97949999,2936.0,2935.9,2.0107379]
[1644753195420,2.01491567,2936.0,2935.9,2.0107379]
[1644753198963,1.9937108,2936.0,2935.9,2.0107379]
[1644753200167,6.07589549,2936.0,2935.9,0.3074879]
[1644753200410,7.07589549,2936.0,2935.9,0.3074879]
[1644753200613,6.42486412,2936.0,2935.9,0.3074879]
[1644753204856,7.07564509,2936.0,2935.9,0.3074879]
[1644753205057,6.42486412,2936.0,2935.9,0.3074879]
[1644753205464,6.44257196,2936.0,2935.9,0.3074879]
[1644753205982,4.45,2935.9,2935.8,0.01479049]
[1644753206179,6.92949999,2935.9,2935.8,0.01479049]
[1644753206363,7.40789999,2935.9,2935.8,0.01092504]
[1644753206786,7.40789999,2935.9,2935.1,0.00386545]
[1644753206787,2.47949999,2935.9,2935.1,0.00386545]
[1644753206964,2.09581684,2935.8,2935.7,1.02215]
[1644753207167,2.09581684,2935.8,2935.7,0.85565545]
[1644753207168,1.47949999,2935.8,2935.7,0.85565545]
[1644753207366,1.47949999,2935.8,2935.7,0.00386545]
[1644753207580,1.47949999,2935.8,2935.1,0.00386545]
[1644753207828,1.44531919,2935.7,2935.1,0.00386545]
[1644753208001,1.13751422,2935.5,2935.1,0.00386545]
[1644753208202,1.44531919,2935.4,2935.3,1.71452043]
[1644753208401,1.44531919,2935.4,2935.3,1.71838588]
[1644753209209,1.47949999,2935.4,2935.3,1.70746545]
[1644753209807,1.47949999,2935.4,2935.3,5.10746545]
[1644753222369,5.7576847,2935.4,2935.3,3.40386545]
[1644753222570,5.7576847,2935.4,2935.3,3.4]
[1644753222812,5.7576847,2935.4,2935.3,1.85785049]
[1644753223606,2.47949999,2935.4,2935.3,1.85785049]
[1644753223808,6.03414578,2935.4,2935.3,1.85785049]
[1644753224211,5.95484586,2935.4,2935.3,1.85785049]
[1644753224615,6.67921561,2935.4,2935.3,1.85785049]
[1644753224807,6.02871796,2935.4,2935.3,1.85785049]
[1644753225006,6.67921561,2935.4,2935.3,1.85785049]
[1644753226008,6.02871796,2935.4,2935.3,1.85785049]
[1644753226212,2.47949999,2935.4,2935.3,1.85785049]
[1644753226413,5.81120851,2935.4,2935.3,1.85785049]
[1644753228268,5.80657508,2935.4,2935.3,1.85785049]
[1644753228466,1.47949999,2935.4,2935.3,1.85785049]
[1644753229716,1.95789999,2935.4,2935.3,1.85785049]
[1644753230314,5.25632633,2935.4,2935.2,0.01090974]
[1644753230507,5.17256357,2935.3,2935.2,0.01090974]
[1644753230706,5.17256357,2935.3,2934.7,1.70403]
[1644753230707,6.17256357,2935.3,2934.7,1.70403]
[1644753230907,2.44531919,2935.2,2934.7,1.70403]
[1644753231107,0.4784,2935.0,2934.7,1.91809583]
[1644753231321,2.29757302,2934.9,2934.7,1.91809583]
[1644753231508,1.44531919,2934.8,2934.7,1.91809583]
[1644753231707,1.44531919,2934.8,2934.7,1.06614583]
[1644753231907,1.44531919,2934.8,2934.7,1.0225]
[1644753232112,1.44531919,2934.8,2934.6,1.70414]
[1644753232308,1.44531919,2934.8,2934.6,1.71505072]
[1644753232309,1.47949999,2934.8,2934.6,1.71505072]
[1644753232508,1.44531919,2934.7,2934.6,1.71505072]
[1644753232714,1.44531919,2934.7,2934.6,3.58133072]
[1644753233111,1.44531919,2934.7,2934.6,3.57042]
[1644753233315,1.47949999,2934.7,2934.6,4.4225]
[1644753234355,1.47949999,2934.7,2934.6,3.4]
[1644753235762,4.89750534,2934.7,2934.6,3.4]
[1644753236366,1.47949999,2934.7,2934.6,3.4]
[1644753239204,1.47949999,2934.7,2934.6,4.25211]
[1644753239603,1.47949999,2934.7,2934.6,3.4]
[1644753242059,1.47949999,2934.7,2934.6,4.2521]
[1644753242658,1.47949999,2934.7,2934.6,2.7058233]
[1644753245609,1.47949999,2934.7,2934.6,1.8537233]
[1644753246807,1.47949999,2934.7,2934.6,2.7058133]
[1644753247217,1.47949999,2934.7,2934.6,1.8537233]
[1644753247809,1.47949999,2934.7,2934.6,2.7058033]
[1644753248409,1.47949999,2934.7,2934.6,1.8537233]
[1644753249555,1.47949999,2934.7,2934.6,2.7058233]
[1644753250959,1.47949999,2934.7,2934.6,1.8537233]
[1644753253813,4.76969462,2934.7,2934.6,1.8537233]
[1644753254033,1.47949999,2934.7,2934.6,1.8537233]
[1644753254216,3.33174999,2934.7,2934.6,1.8537233]
[1644753255027,2.47949999,2934.7,2934.6,1.8537233]
[1644753255415,5.75442049,2934.7,2934.6,1.49652848]
[1644753255614,4.45,2934.6,2934.5,0.01090546]
[1644753255816,10.61632916,2934.6,2934.5,0.01090546]
[1644753256012,10.78662916,2934.6,2933.8,0.00384775]
[1644753256313,10.78662916,2934.6,2933.2,0.8515]
[1644753256314,9.4609,2934.4,2933.2,0.8515]
[1644753256555,9.4609,2934.4,2933.1,1.70482]
[1644753256556,5.01286714,2933.6,2933.1,1.70482]
[1644753256776,5.01286714,2933.6,2932.5,0.25]
[1644753256777,1.37156714,2933.6,2932.5,0.25]
[1644753256960,1.37156714,2933.6,2932.2,0.85261]
[1644753256961,2.44531919,2933.5,2932.2,0.85261]
[1644753257155,1.44531919,2933.4,2932.2,0.85261]
[1644753257366,1.44531919,2933.4,2931.8,6.2314]
[1644753257560,1.44531919,2933.3,2932.3,1.70518]
[1644753257974,1.44531919,2933.3,2932.6,0.85262]
[1644753258162,1.44531919,2933.3,2932.7,0.17049]
[1644753258364,1.44531919,2933.3,2932.5,0.34098]
[1644753258561,1.47949999,2933.3,2932.5,0.34098]
[1644753258763,1.44531919,2933.2,2932.6,0.85252]
[1644753259263,0.97381403,2933.1,2932.6,0.85252]
[1644753259468,0.97381403,2933.1,2932.6,1.15252]
[1644753259662,1.00799483,2933.1,2932.7,1.7049]
[1644753259865,1.00799483,2933.1,2932.7,1.71580901]
[1644753260729,1.00799483,2933.1,2932.7,1.7049]
[1644753261108,1.00799483,2933.1,2932.8,0.01090893]
[1644753262110,1.00799483,2933.1,2932.4,1.87556]
[1644753262340,1.00799483,2933.1,2932.8,0.01090885]
[1644753263115,1.00799483,2933.1,2932.7,0.8525]
[1644753263322,0.4784,2933.0,2932.7,0.8525]
[1644753263513,0.4784,2933.0,2932.8,0.01090885]
[1644753263821,0.5125808,2933.0,2932.8,0.01090885]
[1644753264517,0.5125808,2933.0,2932.5,0.1704]
[1644753264518,0.0341808,2933.0,2932.5,0.1704]
[1644753264654,0.0341808,2933.0,2932.8,0.01090893]
[1644753265672,0.0341808,2933.0,2932.5,0.1704]
[1644753265868,0.0341808,2933.0,2932.2,0.8527]
[1644753266059,0.0341808,2933.0,2932.2,1.1527]
[1644753266682,0.4784,2932.7,2932.2,1.1527]
[1644753266862,0.4784,2932.7,2932.3,0.1705]
[1644753267280,0.4784,2932.7,2932.0,1.70527]
[1644753267473,3.6705,2932.6,2931.8,1.70553]
[1644753267669,3.6705,2932.6,2931.7,0.25]
[1644753267670,0.01299363,2932.4,2931.1,0.8518]
[1644753267931,0.1705,2932.3,2931.0,0.25277411]
[1644753268120,1.62121676,2932.3,2931.0,0.25277411]
[1644753268320,1.09844483,2931.4,2931.2,0.04362817]
[1644753268540,0.9486,2931.4,2931.2,0.04362817]
[1644753268726,0.9827808,2931.4,2931.2,0.04362817]
[1644753269019,0.0341808,2931.4,2931.2,0.89658817]
[1644753269219,0.0341808,2931.4,2931.2,0.85296]
[1644753269417,0.0341808,2931.4,2931.3,0.1705]
[1644753269618,0.0341808,2931.4,2931.3,1.32772711]
[1644753270022,0.0341808,2931.4,2931.3,1.92772711]
[1644753270233,0.0341808,2931.4,2931.3,2.78061711]
[1644753270822,8.08e-05,2931.4,2931.3,3.78061711]
[1644753271020,0.1705,2931.9,2931.5,0.17057]
[1644753271221,0.1705,2931.9,2931.7,0.3]
[1644753271429,0.1705,2931.9,2931.7,0.6]
[1644753271673,0.1705,2931.9,2931.7,0.60383164]
[1644753272257,0.1705,2931.9,2931.7,0.77439164]
[1644753272659,0.1705,2931.9,2931.7,1.62716164]
[1644753272881,0.1705,2931.9,2931.8,0.95824928]
[1644753273140,0.1705,2931.9,2931.8,0.96208092]
[1644753274064,1.2001,2933.2,2931.8,0.96208092]
[1644753274261,0.1705,2933.0,2932.2,1.02302]
[1644753274472,3.6705,2933.4,2932.3,0.17413164]
[1644753274668,3.6705,2933.4,2932.3,0.00383164]
[1644753274862,3.6705,2933.4,2932.7,0.99872992]
[1644753275062,0.1703,2933.5,2932.8,0.00383164]
[1644753275315,0.1703,2933.3,2932.2,1.4705]
[1644753275511,0.1703,2933.4,2932.9,0.01089789]
[1644753275709,3.5170904,2933.6,2932.9,0.01089789]
[1644753275710,1.1703,2933.5,2932.9,0.01089789]
[1644753275934,1.45042418,2933.4,2932.9,0.01089789]
[1644753276115,0.1703,2933.3,2932.9,0.01089789]
[1644753276518,1.0,2933.5,2932.6,1.70501]
[1644753276519,0.1703,2933.4,2932.6,1.70501]
[1644753276912,0.1703,2933.4,2933.0,0.01089781]
[1644753277111,0.1703,2933.5,2933.0,0.01089781]
[1644753277540,0.4784,2933.2,2933.0,0.01089781]
[1644753277717,0.4784,2933.2,2932.9,0.17049]
[1644753277912,0.4784,2933.2,2933.1,0.01089757]
[1644753278914,0.4784,2933.2,2932.8,1.70484]
[1644753279155,1.0170904,2933.6,2933.0,0.01089773]
[1644753279483,0.0170904,2933.6,2933.1,0.85242]
[1644753279680,1.45037338,2933.5,2933.1,0.85242]
[1644753280060,0.4784,2933.3,2933.1,0.85242]
[1644753280262,0.4784,2933.3,2933.2,0.01089748]
[1644753281269,0.4784,2933.3,2933.1,0.85242]
[1644753281470,0.4784,2933.3,2933.1,0.86331757]
[1644753281863,0.03584706,2933.5,2933.2,0.6]
[1644753282063,0.03584706,2933.5,2933.2,2.67052]
[1644753282469,0.03584706,2933.5,2933.3,0.3]
[1644753282664,0.03584706,2933.5,2933.4,0.1703]
[1644753282922,0.03584706,2933.5,2933.3,0.85232]
[1644753283719,0.03584706,2933.5,2933.3,1.15232]
[1644753283978,0.03584706,2933.5,2933.3,1.16286065]
[1644753284927,0.03584706,2933.5,2933.3,1.15232]
[1644753285133,0.03584706,2933.5,2933.3,1.16286065]
[1644753286137,0.03584706,2933.5,2933.3,1.15232]
[1644753286331,0.03584706,2933.5,2933.3,1.16286065]
[1644753287373,0.03584706,2933.5,2933.3,1.15232]
[1644753287575,0.03584706,2933.5,2933.3,1.16321732]
[1644753288568,0.03584706,2933.5,2933.4,0.1703]
[1644753289976,0.03584706,2933.5,2933.3,1.16321724]
[1644753290612,0.03584706,2933.5,2933.3,1.16704287]
[1644753290812,0.03584706,2933.5,2933.3,1.15614563]
[1644753291012,0.0170904,2933.6,2933.4,0.17045]
[1644753291212,0.0170904,2933.6,2933.5,0.85224]
[1644753291411,0.0170904,2933.6,2933.5,3.88475651]
[1644753292012,0.0170904,2933.6,2933.5,0.85606563]
[1644753293016,0.0170904,2933.6,2933.5,1.74198617]
[1644753293418,0.0170904,2933.6,2933.5,0.85606563]
[1644753294673,0.0170904,2933.6,2933.5,5.00107021]
[1644753294879,0.0170904,2933.6,2933.5,5.30107021]
[1644753295489,0.0170904,2933.6,2933.5,1.98635087]
[1644753295676,0.0170904,2933.6,2933.5,2.28635087]
[1644753295912,0.0170904,2933.6,2933.5,5.6729127]
[1644753296075,0.0170904,2933.6,2933.5,1.03956763]
[1644753296278,0.0170904,2933.6,2933.5,4.68209654]
[1644753296677,0.0170904,2933.6,2933.5,1.63956763]
[1644753296989,0.0170904,2933.6,2933.5,5.57582402]
[1644753297177,0.0170904,2933.6,2933.5,5.51315466]
[1644753297578,0.0170904,2933.6,2933.5,2.49180763]
[1644753298091,1.46722021,2933.6,2933.5,2.49180763]
[1644753298612,1.46722021,2933.6,2933.5,5.53567385]
[1644753299013,1.46722021,2933.6,2933.5,2.49180763]
[1644753299211,1.46722021,2933.6,2933.5,5.50312341]
[1644753299434,1.46722021,2933.6,2933.5,5.49136173]
[1644753300416,0.0170904,2933.6,2933.5,5.49136173]
[1644753300624,0.1703,2934.3,2933.6,4.45]
[1644753300925,0.01089432,2934.1,2933.8,0.85203]
[1644753301113,0.01089432,2934.1,2933.8,0.6]
[1644753301574,0.01089432,2934.1,2933.7,6.99686]
[1644753301761,1.85849765,2934.9,2934.0,0.34083]